bitfinex/quotes_SOLUSD_20250424
["timestamp","ask_amount","ask_price","bid_price","bid_amount"]
[1745466906502,32.66963258,147.9,147.81,1.35248052]
[1745466906796,32.66963258,147.9,147.86,9.00499433]
[1745466907411,23.66463825,147.9,147.86,9.00499433]
[1745466907597,23.66463825,147.9,147.87,9.00499433]
[1745466907797,16.90331304,147.9,147.87,9.00499433]
[1745466908098,25.90830737,147.9,147.82,0.14216157]
[1745466908297,9.00499433,147.89,147.84,9.00499433]
[1745466908698,25.90830737,147.9,147.85,9.00499433]
[1745466909226,16.90331304,147.9,147.87,9.00499433]
[1745466909710,23.66463825,147.9,147.86,9.00499433]
[1745466910115,32.66963258,147.9,147.85,9.00499433]
[1745466910525,23.66463825,147.9,147.87,9.00499433]
[1745466911325,23.66463825,147.9,147.82,0.14216157]
[1745466911509,23.66463825,147.9,147.86,9.00499433]
[1745466914232,23.66463825,147.9,147.81,1.35248052]
[1745466914536,23.66463825,147.9,147.86,9.00499433]
[1745466915830,38.90463825,147.9,147.86,9.00499433]
[1745466916508,38.90463825,147.9,147.82,6.76486242]
[1745466916705,38.90463825,147.9,147.86,9.00499433]
[1745466917115,47.90963258,147.9,147.81,1.35248052]
[1745466917434,9.00499433,147.89,147.84,9.00499433]
[1745466917607,9.00499433,147.88,147.83,9.00499433]
[1745466918723,6.76269696,147.87,147.83,9.00499433]
[1745466919732,23.66943936,147.87,147.8,8.27073988]
[1745466919935,23.66943936,147.87,147.83,9.00499433]
[1745466920428,23.66623841,147.89,147.84,9.00499433]
[1745466920629,23.66623841,147.89,147.86,9.00499433]
[1745466921329,23.66623841,147.89,147.85,9.00499433]
[1745466922427,6.7617824,147.89,147.88,9.00499433]
[1745466922639,6.76086809,147.91,147.88,9.00499433]
[1745466922831,6.76086809,147.91,147.9,9.00499433]
[1745466923531,6.75995403,147.93,147.9,9.00499433]
[1745466923706,6.75995403,147.93,147.91,9.00499433]
[1745466923905,6.75995403,147.93,147.92,9.00499433]
[1745466925337,21.92961879,147.94,147.92,9.00499433]
[1745466925832,0.03,147.94,147.93,9.00499433]
[1745466929542,0.03,147.94,147.92,9.00499433]
[1745466930239,0.03,147.94,147.91,9.00499433]
[1745466930634,6.78949709,147.94,147.91,9.00499433]
[1745466931237,6.78949709,147.94,147.87,0.14216157]
[1745466931238,15.79449142,147.94,147.87,0.14216157]
[1745466931424,15.79449142,147.94,147.9,9.00499433]
[1745466931624,6.78949709,147.94,147.9,9.00499433]
[1745466931823,6.78949709,147.94,147.91,9.00499433]
[1745466932333,23.68823982,147.94,147.9,9.00499433]
[1745466932546,32.69323415,147.94,147.85,26.0]
[1745466932728,32.69323415,147.94,147.89,9.00499433]
[1745466934232,23.68823982,147.94,147.91,9.00499433]
[1745466935941,32.69323415,147.94,147.9,9.00499433]
[1745466936543,23.68823982,147.94,147.9,9.00499433]
[1745466937244,23.68823982,147.94,147.91,9.00499433]
[1745466937542,6.78949709,147.94,147.92,9.00499433]
[1745466938137,0.03,147.94,147.93,9.00499433]
[1745466947069,0.03,147.98,147.93,17.25872397]
[1745466947233,0.03,147.98,147.97,9.00499433]
[1745466951552,0.03,147.98,147.95,9.00499433]
[1745466951757,0.03,147.98,147.94,9.00499433]
[1745466951958,0.03,147.98,147.97,9.00499433]
[1745466952143,0.03,147.98,147.96,9.00499433]
[1745466952838,0.03,147.98,147.95,9.00499433]
[1745466953044,0.03,147.98,147.96,9.00499433]
[1745466955038,0.03,147.98,147.92,26.0]
[1745466955358,0.03,147.98,147.97,9.00499433]
[1745466957254,0.03,147.98,147.96,9.00499433]
[1745466958071,0.03,147.98,147.97,9.00499433]
[1745466958557,7.9259,147.97,147.9,1.35181066]
[1745466958737,0.14216157,147.95,147.78,0.063]
[1745466958941,9.00499433,147.91,147.85,9.00499433]
[1745466959248,6.7617824,147.89,147.88,14.07533548]
[1745466960067,6.7617824,147.89,147.87,14.13833548]
[1745466960278,1.35181066,147.88,147.87,0.063]
[1745466961147,8.11359306,147.89,147.87,0.063]
[1745466961557,8.11359306,147.89,147.87,14.13833548]
[1745466962179,6.7617824,147.89,147.88,14.07533548]
[1745466962342,22.2817824,147.89,147.88,14.07533548]
[1745466964151,22.2817824,147.89,147.87,0.063]
[1745466964458,1.35181066,147.88,147.87,0.063]
[1745466965736,1.35181066,147.88,147.87,1e-08]
[1745466965941,15.42714614,147.88,147.87,1e-08]
[1745466966259,30.22498579,147.88,147.87,1e-08]
[1745466968163,16.14965031,147.88,147.87,1e-08]
[1745466968466,30.22498579,147.88,147.87,1e-08]
[1745466969574,48.87463465,147.88,147.87,1e-08]
[1745466974263,64.41463465,147.88,147.87,1e-08]
[1745466975852,90.41463465,147.88,147.87,1e-08]
[1745466976453,8.0009,147.87,147.8,1e-08]
[1745466976663,62.15157096,147.81,147.78,1e-08]
[1745466976971,8.65271566,147.8,147.78,1e-08]
[1745466977152,14.07533548,147.79,147.78,1e-08]
[1745466977357,36.38169314,147.79,147.78,1e-08]
[1745466978457,22.30635766,147.79,147.78,1e-08]
[1745466978661,22.30635766,147.79,147.78,0.14355481]
[1745466980676,36.38169314,147.79,147.78,0.14355481]
[1745466980971,22.30635766,147.79,147.78,0.14355481]
[1745466988469,36.38169314,147.79,147.78,0.14355481]
[1745466989370,22.30635766,147.79,147.78,0.14355481]
[1745466992381,232.04,147.81,147.78,14.21889029]
[1745466992580,232.04,147.81,147.8,14.07533548]
[1745466992581,6.76560662,147.81,147.8,14.07533548]
[1745466994375,7.9303,147.89,147.8,14.07533548]
[1745466994569,6.76223965,147.88,147.84,14.07533548]
[1745466994765,6.76223965,147.88,147.85,14.07533548]
[1745466994968,23.23027698,147.93,147.87,14.07533548]
[1745466995291,33.53238764,147.93,147.89,14.07533548]
[1745466995488,47.60772312,147.93,147.88,14.07533548]
[1745466995973,6.76041103,147.92,147.89,14.07533548]
[1745466999673,6.76041103,147.92,147.88,14.07533548]
[1745467000691,15.42714614,147.91,147.83,6.25346157]
[1745467000905,14.07533548,147.89,147.85,14.07533548]
[1745467001598,6.76223965,147.88,147.85,14.07533548]
[1745467003209,6.76223965,147.88,147.84,14.07533548]
[1745467003997,6.76223965,147.88,147.85,14.07533548]
[1745467004498,6.76223965,147.88,147.84,14.07533548]
[1745467008286,6.76223965,147.88,147.83,26.0]
[1745467008287,6.76191385,147.89,147.86,14.07533548]
[1745467012082,14.07533548,147.88,147.83,26.0]
[1745467012284,14.07533548,147.88,147.84,26.0]
[1745467012806,15.42714614,147.87,147.83,14.07533548]
[1745467013183,15.42714614,147.87,147.82,40.07533548]
[1745467013688,15.42714614,147.87,147.82,14.07533548]
[1745467013903,15.42714614,147.87,147.82,40.07533548]
[1745467014210,15.42714614,147.87,147.82,14.07533548]
[1745467014505,6.76315433,147.86,147.82,40.07533548]
[1745467014701,6.76315433,147.86,147.83,14.07533548]
[1745467014893,6.76315433,147.86,147.82,40.07533548]
[1745467015208,15.42714614,147.85,147.79,0.1435548]
[1745467015383,14.07533548,147.83,147.79,0.1435548]
[1745467015779,14.07533548,147.82,147.79,0.1435548]
[1745467015988,15.42714614,147.82,147.79,0.1435548]
[1745467016318,14.07533548,147.8,147.79,0.1435548]
[1745467016495,6.76589986,147.8,147.79,0.1435548]
[1745467021823,6.76544212,147.81,147.79,0.1435548]
[1745467025201,20.8407776,147.81,147.79,0.1435548]
[1745467025400,6.76544212,147.81,147.79,0.1435548]
[1745467026004,15.42714614,147.8,147.79,0.1435548]
[1745467028209,22.193046,147.8,147.79,0.1435548]
[1745467029320,23.852746,147.8,147.79,0.1435548]
[1745467029509,14.07533548,147.79,147.78,1e-08]
[1745467030420,20.84169314,147.79,147.78,1e-08]
[1745467031306,27.28189314,147.79,147.78,1e-08]
[1745467033201,6.76635766,147.79,147.78,1e-08]
[1745467034003,20.84169314,147.79,147.78,1e-08]
[1745467035712,6.76635766,147.79,147.78,1e-08]
[1745467036710,6.76604839,147.8,147.78,1e-08]
[1745467036931,15.28,147.81,147.79,14.07533548]
[1745467037138,22.04554528,147.81,147.8,14.07533548]
[1745467037510,22.04554528,147.81,147.79,14.07533548]
[1745467037719,22.04554528,147.81,147.78,1e-08]
[1745467037942,36.12088076,147.81,147.78,1e-08]
[1745467038329,15.42714614,147.8,147.78,1e-08]
[1745467039017,1.35181066,147.8,147.78,1e-08]
[1745467039419,6.76635766,147.79,147.78,1e-08]
[1745467039831,20.84169314,147.79,147.78,1e-08]
[1745467042935,6.76635766,147.79,147.78,1e-08]
[1745467043848,6.76589986,147.8,147.78,1e-08]
[1745467047560,20.84123534,147.8,147.78,1e-08]
[1745467047734,22.193046,147.8,147.78,1e-08]
[1745467048275,14.07533548,147.79,147.78,1e-08]
[1745467049571,20.84169314,147.79,147.78,1e-08]
[1745467055155,6.76635766,147.79,147.78,1e-08]
[1745467055459,20.84169314,147.79,147.78,1e-08]
[1745467055687,6.76635766,147.79,147.78,1e-08]
[1745467055858,20.84169314,147.79,147.78,1e-08]
[1745467057437,6.76635766,147.79,147.78,1e-08]
[1745467057650,20.84169314,147.79,147.78,1e-08]
[1745467061360,6.76635766,147.79,147.78,1e-08]
[1745467063144,20.84169314,147.79,147.78,1e-08]
[1745467064271,6.3544,147.78,147.72,0.063]
[1745467064447,14.07533548,147.74,147.72,0.063]
[1745467064648,29.05533548,147.74,147.72,0.063]
[1745467066469,6.7691058,147.73,147.72,0.063]
[1745467072079,14.98,147.74,147.72,14.13833548]
[1745467072265,14.98,147.74,147.73,14.07533548]
[1745467072576,6.76773145,147.76,147.73,14.07533548]
[1745467072754,23.68548573,147.77,147.73,14.07533548]
[1745467080707,1.35181066,147.76,147.72,0.063]
[1745467080888,1.35181066,147.76,147.72,14.13833548]
[1745467081087,14.07533548,147.75,147.72,0.063]
[1745467081774,6.76864762,147.74,147.72,0.063]
[1745467083770,20.8439831,147.74,147.72,0.063]
[1745467084393,14.64,147.73,147.72,0.063]
[1745467086274,21.4091058,147.73,147.72,0.063]
[1745467086895,54.03180578,147.73,147.67,14.07533548]
[1745467087199,14.07533548,147.7,147.66,0.063]
[1745467087381,1.35181066,147.69,147.66,14.13833548]
[1745467087766,1.35181066,147.69,147.66,0.063]
[1745467088209,6.77139761,147.68,147.65,13.13833548]
[1745467088795,6.77139761,147.68,147.66,14.07533548]
[1745467089303,1.35181066,147.69,147.66,14.07533548]
[1745467089607,1.35181066,147.69,147.62,33.9687]
[1745467089999,1.35181066,147.69,147.66,14.07533548]
[1745467090300,6.77139761,147.68,147.66,14.07533548]
[1745467090903,6.77139761,147.68,147.62,32.77412574]
[1745467091094,6.77139761,147.68,147.65,14.07533548]
[1745467093109,21.43139761,147.68,147.66,14.07533548]
[1745467093294,14.66,147.68,147.67,9.03469408]
[1745467093786,14.66,147.68,147.66,9.03469408]
[1745467093982,14.66,147.68,147.64,0.14216157]
[1745467094187,14.66,147.68,147.67,9.03469408]
[1745467094401,21.43139761,147.68,147.67,9.03469408]
[1745467095514,21.43139761,147.68,147.63,42.91244452]
[1745467095682,21.43139761,147.68,147.67,9.03469408]
[1745467097120,21.43139761,147.68,147.63,36.13877632]
[1745467097612,21.43139761,147.68,147.67,9.03469408]
[1745467097613,14.66,147.68,147.67,9.03469408]
[1745467097912,6.77109092,147.69,147.67,9.03469408]
[1745467098112,6.77109092,147.69,147.68,9.03469408]
[1745467098309,6.77109092,147.69,147.62,32.77409015]
[1745467098521,6.77109092,147.69,147.67,9.03469408]
[1745467098903,6.77002234,147.71,147.68,9.03469408]
[1745467099207,6.77002234,147.71,147.7,9.03469408]
[1745467100201,6.77002234,147.71,147.66,1.35400787]
[1745467100402,1.35181066,147.7,147.67,9.03469408]
[1745467100735,23.69507819,147.71,147.68,9.03469408]
[1745467101105,23.69507819,147.71,147.64,0.14216157]
[1745467101303,23.69507819,147.71,147.68,9.03469408]
[1745467102315,6.77002234,147.71,147.68,9.03469408]
[1745467102621,21.42971536,147.72,147.7,9.03469408]
[1745467102809,14.66,147.72,147.71,9.03469408]
[1745467103017,21.4281895,147.75,147.71,9.03469408]
[1745467103205,21.4281895,147.75,147.72,9.03469408]
[1745467104922,21.4281895,147.75,147.73,9.03469408]
[1745467105115,21.4281895,147.75,147.74,9.03469408]
[1745467105735,246.96,147.77,147.74,9.03469408]
[1745467105924,246.96,147.77,147.71,0.14216157]
[1745467106223,246.96,147.77,147.75,9.03469408]
[1745467106708,253.72738932,147.77,147.75,9.03469408]
[1745467107597,253.72738932,147.77,147.74,9.03469408]
[1745467108504,253.72738932,147.77,147.75,9.03469408]
[1745467108919,253.72738932,147.77,147.74,9.03469408]
[1745467109433,253.72738932,147.77,147.75,9.03469408]
[1745467110330,253.72738932,147.77,147.71,0.14216157]
[1745467110518,253.72738932,147.77,147.75,9.03469408]
[1745467111421,253.72738932,147.77,147.74,9.03469408]
[1745467112003,253.72738932,147.77,147.75,9.03469408]
[1745467112637,253.72738932,147.77,147.71,0.14216157]
[1745467113128,253.72738932,147.77,147.75,9.03469408]
[1745467113735,253.72738932,147.77,147.71,0.14216157]
[1745467113927,253.72738932,147.77,147.75,9.03469408]
[1745467115717,253.72738932,147.77,147.74,9.03469408]
[1745467116945,253.72738932,147.77,147.75,9.03469408]
[1745467117639,6.097,147.75,147.69,1.3536973]
[1745467117811,1.35181066,147.74,147.68,9.03469408]
[1745467118019,9.03469408,147.73,147.68,9.03469408]
[1745467118251,10.38650474,147.74,147.69,9.03469408]
[1745467118418,1.35181066,147.74,147.7,9.03469408]
[1745467118610,1.35181066,147.74,147.65,18.64964886]
[1745467118816,6.7691058,147.73,147.69,9.03469408]
[1745467119020,15.95181066,147.72,147.69,9.03469408]
[1745467119341,14.6,147.72,147.69,9.03469408]
[1745467119943,14.6,147.72,147.68,9.03469408]
[1745467120116,15.95181066,147.72,147.66,26.0]
[1745467120318,15.95181066,147.72,147.68,9.03469408]
[1745467121036,6.77002234,147.71,147.68,9.03469408]
[1745467121344,1.35181066,147.7,147.64,0.14216157]
[1745467121637,1.35181066,147.7,147.66,9.03469408]
[1745467122416,8.121833,147.71,147.68,9.03469408]
[1745467123143,8.121833,147.71,147.67,9.03469408]
[1745467123343,17.15652708,147.71,147.64,0.14216157]
[1745467123543,17.15652708,147.71,147.67,9.03469408]
[1745467123544,8.121833,147.71,147.67,9.03469408]
[1745467124032,8.121833,147.71,147.64,0.14216157]
[1745467124222,8.121833,147.71,147.67,9.03469408]
[1745467125314,25.04688885,147.71,147.67,9.03469408]
[1745467125516,25.04688885,147.71,147.63,62.20177632]
[1745467125517,34.08158293,147.71,147.66,9.03469408]
[1745467126245,9.03469408,147.7,147.65,9.03469408]
[1745467126422,1.35181066,147.69,147.63,0.063]
[1745467126625,10.38650474,147.69,147.63,0.063]
[1745467126846,1.35181066,147.69,147.63,0.063]
[1745467127021,1.35181066,147.69,147.66,9.03469408]
[1745467127222,6.77139761,147.68,147.65,9.03469408]
[1745467127443,6.77139761,147.68,147.63,0.063]
[1745467127632,6.77139761,147.68,147.65,9.03469408]
[1745467128644,6.77139761,147.68,147.63,0.063]
[1745467129022,6.77139761,147.68,147.65,9.03469408]
[1745467130536,21.37139761,147.68,147.63,0.063]
[1745467130846,21.37139761,147.68,147.65,9.03469408]
[1745467131348,1.35181066,147.67,147.63,0.063]
[1745467131551,41.27830231,147.68,147.64,9.03469408]
[1745467131725,41.27830231,147.68,147.65,9.03469408]
[1745467132855,21.37139761,147.68,147.63,36.20177632]
[1745467133027,21.37139761,147.68,147.66,9.03469408]
[1745467133227,21.37139761,147.68,147.65,9.03469408]
[1745467134151,22.72320827,147.68,147.65,9.03469408]
[1745467135364,22.72320827,147.68,147.63,0.063]
[1745467135528,39.65170231,147.68,147.65,9.03469408]
[1745467135844,39.65170231,147.68,147.64,9.03469408]
[1745467136425,48.68639639,147.68,147.64,9.03469408]
[1745467136648,48.68639639,147.68,147.63,9.09769408]
[1745467137523,9.03469408,147.67,147.63,9.09769408]
[1745467137726,1.35181066,147.66,147.63,9.09769408]
[1745467137924,39.65170231,147.68,147.65,9.03469408]
[1745467139640,39.65170231,147.68,147.63,0.063]
[1745467139946,39.65170231,147.68,147.65,9.03469408]
[1745467140447,39.65170231,147.68,147.63,0.063]
[1745467140652,39.65170231,147.68,147.64,9.03469408]
[1745467141254,39.65170231,147.68,147.63,0.063]
[1745467141436,39.65170231,147.68,147.64,9.03469408]
[1745467141840,22.72320827,147.68,147.65,9.03469408]
[1745467142146,21.37139761,147.68,147.67,9.03469408]
[1745467142334,21.37139761,147.68,147.66,9.03469408]
[1745467143066,14.6,147.68,147.67,9.03469408]
[1745467143223,15.80471642,147.71,147.63,26.063]
[1745467143425,1.35181066,147.7,147.66,9.03469408]
[1745467144045,1.35181066,147.7,147.67,9.03469408]
[1745467144449,1.35181066,147.7,147.66,9.03469408]
[1745467144654,1.35181066,147.7,147.63,62.20177632]
[1745467144844,1.35181066,147.7,147.66,9.03469408]
[1745467145248,6.77093912,147.69,147.66,9.03469408]
[1745467145477,6.77093912,147.69,147.67,9.03469408]
[1745467145638,6.77065173,147.7,147.68,9.03469408]
[1745467145839,6.77065173,147.7,147.69,9.03469408]
[1745467146039,14.94,147.72,147.69,9.03469408]
[1745467146262,14.94,147.72,147.7,9.03469408]
[1745467146464,1.35181066,147.71,147.67,9.03469408]
[1745467146766,1.35181066,147.71,147.68,9.03469408]
[1745467147145,21.70969693,147.72,147.7,9.03469408]
[1745467147347,21.70969693,147.72,147.69,9.03469408]
[1745467149371,9.03469408,147.7,147.63,1.601]
[1745467149571,1.35181066,147.69,147.65,9.03469408]
[1745467149773,1.35181066,147.7,147.66,9.03469408]
[1745467150545,10.38650474,147.7,147.65,9.03469408]
[1745467150745,1.35181066,147.7,147.66,9.03469408]
[1745467151572,6.77093912,147.69,147.66,9.03469408]
[1745467151864,1.35181066,147.68,147.66,9.03469408]
[1745467152463,8.12274978,147.69,147.67,9.03469408]
[1745467152867,8.12274978,147.69,147.66,9.03469408]
[1745467155573,6.77093912,147.69,147.63,42.97546254]
[1745467155875,6.77093912,147.69,147.68,9.03469408]
[1745467156081,16.29181066,147.72,147.68,9.03469408]
[1745467156264,8.2626,147.75,147.64,27.49641042]
[1745467156265,6.769269,147.73,147.71,9.03469408]
[1745467156450,6.769269,147.73,147.64,27.49641042]
[1745467156451,6.76881007,147.74,147.72,9.03469408]
[1745467158979,6.76881007,147.74,147.73,9.03469408]
[1745467160817,6.76881007,147.74,147.72,9.03469408]
[1745467161083,6.76881007,147.74,147.73,9.03469408]
[1745467163590,6.76881007,147.74,147.72,9.03469408]
[1745467164585,6.76881007,147.74,147.73,9.03469408]
[1745467166890,16.91575221,147.8,147.73,9.03469408]
[1745467167094,6.76681553,147.78,147.77,9.03469408]
[1745467167281,6.76681553,147.78,147.76,9.03469408]
[1745467168596,6.76681553,147.78,147.71,8.26524821]
[1745467168804,6.76681553,147.78,147.75,9.03469408]
[1745467169297,6.76681553,147.78,147.76,9.03469408]
[1745467171884,6.76681553,147.78,147.77,9.03469408]
[1745467173480,21.70651707,147.79,147.77,9.03469408]
[1745467173803,21.70651707,147.79,147.78,9.03469408]
[1745467174194,0.03,147.81,147.78,9.03469408]
[1745467174496,0.03,147.81,147.8,9.03469408]
[1745467175308,6.79563,147.81,147.8,9.03469408]
[1745467178001,6.79563,147.81,147.77,26.0]
[1745467178301,6.79563,147.81,147.79,9.03469408]
[1745467180007,1.35181066,147.8,147.73,0.14216157]
[1745467180188,1.35181066,147.8,147.78,9.03469408]
[1745467180379,1.35181066,147.8,147.75,26.0]
[1745467180694,6.79563,147.81,147.79,9.03469408]
[1745467181089,23.7092353,147.81,147.79,9.03469408]
[1745467181413,6.79563,147.81,147.79,9.03469408]
[1745467183611,6.79563,147.81,147.75,26.0]
[1745467183612,1.35181066,147.8,147.75,26.0]
[1745467183909,1.35181066,147.8,147.76,9.03469408]
[1745467183910,10.38650474,147.8,147.76,9.03469408]
[1745467184689,10.38650474,147.8,147.75,9.03469408]
[1745467184897,9.03469408,147.78,147.74,9.03469408]
[1745467185207,1.35181066,147.77,147.74,9.03469408]
[1745467185406,6.76773145,147.76,147.74,9.03469408]
[1745467187311,6.76727346,147.77,147.74,9.03469408]
[1745467191720,6.76727346,147.77,147.75,9.03469408]
[1745467192806,23.68545712,147.77,147.73,26.0]
[1745467193019,23.68545712,147.77,147.73,9.03469408]
[1745467193020,1.35181066,147.76,147.73,9.03469408]
[1745467194215,6.7681895,147.75,147.73,9.03469408]
[1745467194619,6.7681895,147.75,147.7,26.0]
[1745467194810,6.7681895,147.75,147.72,9.03469408]
[1745467196430,6.7681895,147.75,147.7,26.0]
[1745467196631,6.7681895,147.75,147.72,9.03469408]
[1745467197819,6.7681895,147.75,147.73,9.03469408]
[1745467199936,6.7681895,147.75,147.7,26.0]
[1745467200125,6.7681895,147.75,147.72,9.03469408]
[1745467200835,6.7681895,147.75,147.7,26.0]
[1745467201021,6.7681895,147.75,147.72,9.03469408]
[1745467202419,23.68866327,147.75,147.7,26.0]
[1745467202623,1.35181066,147.74,147.71,9.03469408]
[1745467202940,1.35181066,147.74,147.72,9.03469408]
[1745467203317,6.7681895,147.75,147.73,9.03469408]
[1745467203533,6.7681895,147.75,147.74,9.03469408]
[1745467203927,6.7681895,147.75,147.71,0.14216157]
[1745467204128,6.7681895,147.75,147.74,9.03469408]
[1745467204334,2.86181066,147.77,147.72,9.03469408]
[1745467204335,23.68713113,147.76,147.72,9.03469408]
[1745467204550,1.35181066,147.75,147.72,9.03469408]
[1745467204929,10.38650474,147.75,147.68,0.063]
[1745467205127,10.38650474,147.75,147.7,9.03469408]
[1745467206447,6.76864762,147.74,147.7,9.03469408]
[1745467206625,1.35181066,147.73,147.7,9.03469408]
[1745467207030,1.35181066,147.73,147.71,9.03469408]
[1745467207344,8.12045828,147.74,147.71,9.03469408]
[1745467209341,8.12045828,147.74,147.72,9.03469408]
[1745467210018,8.12045828,147.74,147.71,9.03469408]
[1745467210641,10.54469408,147.77,147.73,9.03469408]
[1745467210642,6.76773145,147.76,147.73,9.03469408]
[1745467210849,6.76741323,147.77,147.73,0.14216157]
[1745467211140,6.76741323,147.77,147.76,9.03469408]
[1745467211547,6.76681553,147.78,147.76,9.03469408]
[1745467211750,6.76681553,147.78,147.77,9.03469408]
[1745467213325,8.11862619,147.78,147.76,9.03469408]
[1745467214235,25.03566503,147.78,147.75,9.03469408]
[1745467214630,25.03566503,147.78,147.74,9.03469408]
[1745467215445,25.03566503,147.78,147.76,9.03469408]
[1745467215753,25.03566503,147.78,147.75,9.03469408]
[1745467216347,25.03566503,147.78,147.76,9.03469408]
[1745467216544,6.76681553,147.78,147.77,9.03469408]
[1745467217538,21.64636646,147.79,147.77,9.03469408]
[1745467217760,21.64636646,147.79,147.78,9.03469408]
[1745467219647,0.03,147.81,147.78,9.03469408]
[1745467219855,0.03,147.81,147.8,35.03469408]
[1745467220555,0.03,147.81,147.8,26.0]
[1745467220885,0.03,147.81,147.8,35.03469408]
[1745467221754,0.03,147.81,147.8,35.17685565]
[1745467222450,0.03,147.81,147.8,35.03469408]
[1745467222843,0.03,147.81,147.76,18.64964886]
[1745467222844,0.03,147.81,147.76,26.0]
[1745467223032,0.03,147.81,147.8,9.03469408]
[1745467224255,0.03,147.81,147.8,35.17685565]
[1745467227177,0.03,147.81,147.8,17.29561746]
[1745467227369,0.03,147.81,147.8,10.5297176]
[1745467228251,0.03,147.81,147.8,9.03469408]
[1745467229975,26.03,147.81,147.8,9.03469408]
[1745467231364,0.03,147.81,147.8,9.03469408]
[1745467231562,0.03,147.81,147.8,9.17685565]
[1745467231966,0.03,147.82,147.81,0.14216157]
[1745467232166,0.03,147.83,147.81,9.17685565]
[1745467232353,0.03,147.83,147.82,9.03469408]
[1745467236657,0.03,147.83,147.82,53.43338871]
[1745467237065,0.03,147.83,147.82,17.29461239]
[1745467237983,0.03,147.84,147.83,0.14216157]
[1745467238285,0.03,147.84,147.83,71.31563197]
[1745467238980,0.03,147.84,147.83,35.03469408]
[1745467239283,0.03,147.84,147.83,26.0]
[1745467239583,0.03,147.84,147.83,9.03469408]
[1745467240575,0.03,147.84,147.75,6.76789109]
[1745467240576,8.0078,147.83,147.75,6.76789109]
[1745467240764,8.1167951,147.82,147.74,6.76864762]
[1745467241085,8.1167951,147.82,147.78,9.03469408]
[1745467241488,8.1167951,147.82,147.79,9.03469408]
[1745467242086,8.1167951,147.82,147.8,9.03469408]
[1745467242471,8.1167951,147.82,147.79,9.03469408]
[1745467242978,25.0292562,147.82,147.79,9.03469408]
[1745467243179,34.06395028,147.82,147.77,9.03469408]
[1745467244088,33.98542876,147.82,147.77,35.03469408]
[1745467244469,8.03827358,147.82,147.8,9.03469408]
[1745467244678,8.03827358,147.82,147.81,9.03469408]
[1745467244877,6.68646292,147.82,147.81,9.03469408]
[1745467245071,14.77245063,147.83,147.77,26.0]
[1745467245289,1.35181066,147.82,147.73,26.0]
[1745467245594,9.03469408,147.8,147.75,9.03469408]
[1745467245767,1.35181066,147.79,147.76,9.03469408]
[1745467246282,8.1183848,147.79,147.77,9.03469408]
[1745467247675,9.03469408,147.82,147.78,9.03469408]
[1745467247676,1.35181066,147.82,147.78,9.03469408]
[1745467247881,1.35181066,147.82,147.81,9.03469408]
[1745467248688,8.1167951,147.82,147.81,9.03469408]
[1745467249384,8.1167951,147.82,147.77,36.13877632]
[1745467249580,8.1167951,147.82,147.81,9.03469408]
[1745467249796,6.76498444,147.82,147.81,9.03469408]
[1745467250989,6.76465648,147.83,147.81,9.03469408]
[1745467251176,6.76465648,147.83,147.82,9.03469408]
[1745467254201,6.79412935,147.84,147.82,9.03469408]
[1745467254500,6.79412935,147.84,147.83,9.03469408]
[1745467255920,0.03,147.84,147.83,9.03469408]
[1745467257099,0.03,147.84,147.8,26.0]
[1745467257279,1.35181066,147.83,147.81,9.03469408]
[1745467257490,1.35181066,147.83,147.78,26.0]
[1745467257696,15.40299408,147.82,147.75,0.063]
[1745467258001,15.80242553,147.76,147.75,0.063]
[1745467258188,6.76773145,147.76,147.75,0.063]
[1745467258515,15.80242553,147.76,147.75,0.063]
[1745467258978,42.38917439,147.76,147.75,1e-08]
[1745467259410,47.46799397,147.76,147.75,1e-08]
[1745467260572,33.35448031,147.76,147.75,1e-08]
[1745467260772,47.46799397,147.76,147.75,1e-08]
[1745467261386,28.81834511,147.76,147.75,1e-08]
[1745467261588,47.46799397,147.76,147.75,1e-08]
[1745467262507,14.70483145,147.76,147.75,1e-08]
[1745467265619,6.76734298,147.77,147.75,14.11351367]
[1745467265791,6.76635766,147.79,147.76,14.11351366]
[1745467265990,6.76635766,147.79,147.78,14.11351366]
[1745467266417,15.38,147.81,147.78,14.11351366]
[1745467266597,22.14550356,147.81,147.8,14.11351366]
[1745467266799,6.76550356,147.81,147.8,14.11351366]
[1745467267908,6.76498444,147.82,147.8,14.11351366]
[1745467268829,6.76498444,147.82,147.79,14.11351366]
[1745467269199,6.76498444,147.82,147.8,14.11351366]
[1745467269722,1.35181066,147.83,147.81,14.11351366]
[1745467269723,6.76464855,147.83,147.81,14.11351366]
[1745467270025,6.76464855,147.83,147.82,14.11351366]
[1745467270426,6.79421605,147.84,147.82,14.11351366]
[1745467270614,6.79421605,147.84,147.83,14.11351366]